[Event "XIII Mediterranean Championship 2023"]
[Site "Castell-Platja d Aro"]
[Date "2023.11.05"]
[Round "3.30"]
[White "Hernando Rodrigo, Inmaculada"]
[Black "Hernando Rodrigo, Lourdes"]
[Result "1/2-1/2"]
[ECO "D05"]
[WhiteElo "1734"]
[BlackElo "1625"]
[Annotator "NA"]
[PlyCount "54"]
[EventDate "2023.10.26"]
[EventType "swiss"]
[EventCountry "ESP"]
[SourceTitle "playchess.com"]
[Source "ChessBase"]
[SourceQuality "1"]
[TimeControl "5400+30"]

1. d4 {[%emt 1:31:00]} d5 {[%emt 1:31:00]} 2. Nf3 {[%emt 0:00:30]} Nf6 {[%emt 0:00:30]} 3. e3 {[%emt 0:00:30]} e6 {[%emt 0:00:30]} 4. Bd3 {[%emt 0:00:30]} Bd6 {[%emt 0:00:30]} 5. O-O {[%emt 0:00:30]} c5 {[%emt 0:00:30]} 6. c3 {[%emt 0:00:30]} O-O {[%emt 0:00:30]} 7. Nbd2 {[%emt 0:00:30]} Nbd7 {[%emt 0:00:30]} 8. Re1 {[%emt 0:00:30]} cxd4 {[%emt 0:00:30]} 9. exd4 {[%emt 0:00:30]} Re8 {[%emt 0:00:30]} 10. Nf1 {[%emt 0:00:30]} Qc7 {[%emt 0:00:30]} 11. Bg5 {[%emt 0:00:30]} h6 {[%emt 0:00:30]} 12. Bxf6 {[%emt 0:00:30]} Nxf6 {[%emt 0:00:30]} 13. h3 {[%emt 0:00:30]} Bd7 {[%emt 0:00:30]} 14. Ne5 {[%emt 0:00:30]} Bc6 {[%emt 0:00:30]} 15. Nxc6 {[%emt 0:00:30]} Qxc6 {[%emt 0:00:30]} 16. Qe2 {[%emt 0:00:30]} a6 {[%emt 0:00:30]} 17. Rad1 {[%emt 0:00:30]} Qc7 {[%emt 0:00:30]} 18. Bb1 {[%emt 0:00:30]} e5 {[%emt 0:00:30]} 19. dxe5 {[%emt 0:00:30]} Bxe5 {[%emt 0:00:30]} 20. Qd3 {[%emt 0:00:30]} Bd6 {[%emt 0:00:30]} 21. Rxe8+ {[%emt 0:00:30]} Rxe8 {[%emt 0:00:30]} 22. Ng3 {[%emt 0:00:30]} Bxg3 {[%emt 0:00:30]} 23. Qxg3 {[%emt 0:00:30]} Qxg3 {[%emt 0:00:30]} 24. fxg3 {[%emt 0:00:30]} Ne4 {[%emt 0:00:30]} 25. Bxe4 {[%emt 0:00:30]} dxe4 {[%emt 0:00:30]} 26. Kf2 {[%emt 0:00:30]} Re7 {[%emt 0:00:30]} 27. Ke3 {[%emt 0:00:30]} f5 {[%emt 0:00:30]} 1/2-1/2

[Event "XIII Mediterranean Championship 2023"]
[Site "Castell-Platja d Aro"]
[Date "2023.11.05"]
[Round "3.31"]
[White "Delbos, Jean-Louis"]
[Black "Lunin Bohomolets, Iliia"]
[Result "0-1"]
[ECO "B21"]
[WhiteElo "1573"]
[BlackElo "1850"]
[Annotator "NA"]
[PlyCount "58"]
[EventDate "2023.10.26"]
[EventType "swiss"]
[EventCountry "ESP"]
[SourceTitle "playchess.com"]
[Source "ChessBase"]
[SourceQuality "1"]
[TimeControl "5400+30"]

1. e4 {[%emt 0:00:06]} c5 {[%emt 0:00:14]} 2. d4 {[%emt 0:00:18]} cxd4 {[%emt 0:00:54]} 3. c3 {[%emt 0:00:15]} d5 {[%emt 0:00:16]} 4. Qa4+ {[%emt 0:03:45]} Bd7 {[%emt 0:02:03]} 5. Qxd4 {[%emt 0:00:30]} dxe4 {[%emt 0:00:31]} 6. Qxe4 {[%emt 0:02:24]} Bc6 {[%emt 0:02:17]} 7. Qc2 {[%emt 0:03:28]} Nf6 {[%emt 0:01:22]} 8. Bf4 {[%emt 0:02:22]} Nbd7 {[%emt 0:02:18]} 9. Nd2 {[%emt 0:01:57]} e5 {[%emt 0:01:07]} 10. Bg5 {[%emt 0:05:24]} Bc5 {[%emt 1:24:28]} 11. Ne2 {[%emt 0:10:20]} Bxf2+ {[%emt 0:00:00]} 12. Kxf2 {[%emt 1:05:41]} Ng4+ {[%emt 0:01:00]} 13. Kg1 {[%emt 0:00:00]} Qxg5 {[%emt 0:00:30]} 14. Qd3 {[%emt 0:00:00]} Nc5 {[%emt 0:00:00]} 15. h4 {[%emt 0:00:00]} Qf6 {[%emt 0:00:00]} 16. Qg3 {[%emt 0:00:00]} h5 {[%emt 0:00:00]} 17. b4 {[%emt 0:00:00]} O-O-O {[%emt 0:00:00]} 18. bxc5 {[%emt 0:00:00]} Rxd2 {[%emt 0:00:00]} 19. Qe1 {[%emt 0:00:00]} Rhd8 {[%emt 0:00:00]} 20. Rh3 {[%emt 0:00:00]} g6 {[%emt 0:00:00]} 21. Nd4 {[%emt 0:00:00]} exd4 {[%emt 0:00:00]} 22. Qxd2 {[%emt 0:00:00]} dxc3 {[%emt 0:00:00]} 23. Qxc3 {[%emt 0:00:00]} Qf2+ {[%emt 0:00:00]} 24. Kh1 {[%emt 0:00:00]} Rd2 {[%emt 0:00:00]} 25. Rg3 {[%emt 0:00:00]} Rc2 {[%emt 0:00:00]} 26. Qd3 {[%emt 0:00:00]} Rd2 {[%emt 0:00:00]} 27. Qc3 {[%emt 0:00:00]} Be4 {[%emt 0:00:00]} 28. c6 {[%emt 0:00:00]} bxc6 {[%emt 0:00:00]} 29. Rb1 {[%emt 0:00:00]} Bxb1 {[%emt 0:00:00]} 0-1

[Event "XIII Mediterranean Championship 2023"]
[Site "Castell-Platja d Aro"]
[Date "2023.11.05"]
[Round "3.32"]
[White "Leon Escoda, Manel"]
[Black "Burset Camps, Guillem"]
[Result "1-0"]
[ECO "B51"]
[WhiteElo "1682"]
[BlackElo "1408"]
[Annotator "NA"]
[PlyCount "47"]
[EventDate "2023.10.26"]
[EventType "swiss"]
[EventCountry "ESP"]
[SourceTitle "playchess.com"]
[Source "ChessBase"]
[SourceQuality "1"]
[TimeControl "5400+30"]

1. e4 {[%emt 0:00:08]} c5 {[%emt 0:01:25]} 2. Nf3 {[%emt 0:00:20]} Nc6 {[%emt 0:00:09]} 3. Bb5 {[%emt 0:00:16]} a6 {[%emt 0:00:10]} 4. Bxc6 {[%emt 0:00:12]} bxc6 {[%emt 0:00:21]} 5. O-O {[%emt 0:00:13]} d6 {[%emt 0:00:17]} 6. c3 {[%emt 1:32:21]} e5 {[%emt 0:00:33]} 7. d4 {[%emt 0:00:00]} cxd4 {[%emt 0:03:27]} 8. cxd4 {[%emt 0:00:00]} Qc7 {[%emt 0:01:49]} 9. h3 {[%emt 0:00:00]} Nf6 {[%emt 0:00:41]} 10. Nc3 {[%emt 0:00:00]} Be7 {[%emt 0:01:21]} 11. Be3 {[%emt 0:00:00]} O-O {[%emt 0:01:18]} 12. Rc1 {[%emt 0:00:00]} h6 {[%emt 0:05:15]} 13. Qc2 {[%emt 0:00:00]} Nh7 {[%emt 0:05:15]} 14. dxe5 {[%emt 0:00:00]} dxe5 {[%emt 0:01:04]} 15. Nd5 {[%emt 0:00:00]} Qb7 {[%emt 1:14:55]} 16. Nxe7+ {[%emt 0:00:00]} Qxe7 {[%emt 0:00:00]} 17. Bc5 {[%emt 0:00:00]} Qe6 {[%emt 0:00:00]} 18. Bxf8 {[%emt 0:00:00]} Kxf8 {[%emt 0:00:00]} 19. Qc5+ {[%emt 0:00:00]} Qe7 {[%emt 0:00:00]} 20. Nxe5 {[%emt 0:00:00]} Qxc5 {[%emt 0:00:00]} 21. Rxc5 {[%emt 0:00:00]} Nf6 {[%emt 0:00:00]} 22. Rd1 {[%emt 0:00:00]} Nxe4 {[%emt 0:00:00]} 23. Rd8+ {[%emt 0:00:00]} Ke7 {[%emt 0:00:00]} 24. Nxc6+ {[%emt 0:00:00]} 1-0

[Event "XIII Mediterranean Championship 2023"]
[Site "Castell-Platja d Aro"]
[Date "2023.11.06"]
[Round "4.1"]
[White "Eugene, Floryan"]
[Black "Garriga Cazorla, Pere"]
[Result "1/2-1/2"]
[ECO "B92"]
[WhiteElo "2426"]
[BlackElo "2459"]
[Annotator "RC"]
[PlyCount "119"]
[EventDate "2023.10.26"]
[EventType "swiss"]
[EventCountry "ESP"]
[SourceTitle "playchess.com"]
[Source "ChessBase"]
[SourceQuality "1"]
[TimeControl "5400+30"]

1. e4 {[%emt 0:01:31]} c5 {[%emt 0:01:02]} 2. Nf3 {[%emt 0:00:08]} d6 {[%emt 0:00:07]} 3. d4 {[%emt 0:00:04]} cxd4 {[%emt 0:00:05]} 4. Nxd4 {[%emt 0:00:04]} Nf6 {[%emt 0:00:06]} 5. Nc3 {[%emt 0:00:03]} a6 {[%emt 0:00:05]} 6. Be2 {[%emt 0:00:03]} e5 {[%emt 0:02:12]} 7. Nb3 {[%emt 0:00:07]} Be7 {[%emt 0:00:06]} 8. Be3 {[%emt 0:00:25]} Be6 {[%emt 0:02:28]} 9. Nd5 {[%emt 0:00:50]} Nxd5 {[%emt 0:01:04]} 10. exd5 {[%emt 0:00:05]} Bf5 {[%emt 0:00:07]} 11. O-O {[%emt 0:13:27]} O-O {[%emt 0:04:30]} 12. Qd2 {[%emt 0:09:42]} Nd7 {[%emt 0:01:33]} 13. a4 {[%emt 0:01:37]} Qc7 {[%emt 0:11:58]} 14. Rfc1 {[%emt 0:04:08]} a5 {[%emt 0:02:55]} 15. Bb5 {[%emt 0:01:53]} b6 {[%emt 0:07:52]} 16. Qe2 {[%emt 0:02:52]} Bg6 {[%emt 0:08:17]} 17. Qc4 {[%emt 0:20:33]} Nc5 {[%emt 0:09:08]} 18. Re1 {[%emt 0:08:25]} Rac8 {[%emt 0:05:22]} 19. Bc6 {[%emt 0:04:21]} Bf5 {[%emt 0:04:47]} 20. Ra3 {[%emt 0:07:04]} Bd7 {[%emt 0:07:52]} 21. Nxc5 {[%emt 0:00:40]} dxc5 {[%emt 0:00:06]} 22. Bxd7 {[%emt 0:00:59]} Qxd7 {[%emt 0:00:00]} 23. Rb3 {[%emt 0:00:09]} Rb8 {[%emt 0:00:23]} 24. f4 {[%emt 0:00:30]} Bd6 {[%emt 0:00:30]} 25. fxe5 {[%emt 0:00:30]} Bxe5 {[%emt 0:00:30]} 26. Bxc5 {[%emt 0:00:30]} Qc7 {[%emt 0:00:30]} 27. Rxe5 {[%emt 0:00:30]} Qxe5 {[%emt 0:00:30]} 28. Bxf8 {[%emt 0:00:30]} Rxf8 {[%emt 0:00:30]} 29. Rf3 {[%emt 0:00:30]} h6 {[%emt 0:00:30]} 30. b3 {[%emt 0:00:30]} Rd8 {[%emt 0:00:30]} 31. d6 {[%emt 0:00:30]} Rxd6 {[%emt 0:00:30]} 32. Qxf7+ {[%emt 0:00:30]} Kh7 {[%emt 0:00:30]} 33. Qf5+ {[%emt 0:00:30]} Qxf5 {[%emt 0:00:30]} 34. Rxf5 {[%emt 0:00:30]} Rd1+ {[%emt 0:00:30]} 35. Rf1 {[%emt 0:00:30]} Rd2 {[%emt 0:00:30]} 36. c4 {[%emt 0:00:30]} Kg6 {[%emt 0:00:30]} 37. Rf3 {[%emt 0:00:30]} h5 {[%emt 0:00:30]} 38. h4 {[%emt 0:00:30]} Rd4 {[%emt 0:00:30]} 39. Rg3+ {[%emt 0:00:30]} Kh6 {[%emt 0:00:30]} 40. Rg5 {[%emt 0:00:30]} Rxh4 {[%emt 0:00:30]} 41. Rb5 {[%emt 0:00:30]} Rd4 {[%emt 0:00:30]} 42. Rxb6+ {[%emt 0:00:30]} Kg5 {[%emt 0:00:30]} 43. c5 {[%emt 0:00:30]} Rd2 {[%emt 0:00:30]} 44. c6 {[%emt 0:00:30]} Rc2 {[%emt 0:00:30]} 45. Rb5+ {[%emt 0:00:30]} Kg4 {[%emt 0:00:30]} 46. Rxa5 {[%emt 0:00:30]} Rxc6 {[%emt 0:00:30]} 47. Kh2 {[%emt 0:00:30]} g5 {[%emt 0:00:30]} 48. Rb5 {[%emt 0:00:30]} h4 {[%emt 0:00:30]} 49. Rb4+ {[%emt 0:00:30]} Kf5 {[%emt 0:00:30]} 50. Rc4 {[%emt 0:00:30]} Rd6 {[%emt 0:00:30]} 51. Rc5+ {[%emt 0:00:30]} Kf4 {[%emt 0:00:30]} 52. Rc3 {[%emt 0:00:30]} g4 {[%emt 0:00:30]} 53. g3+ {[%emt 0:00:30]} hxg3+ {[%emt 0:00:30]} 54. Rxg3 {[%emt 0:00:30]} Rh6+ {[%emt 0:27:52]} 55. Kg2 {[%emt 0:21:47]} Rc6 {[%emt 0:00:30]} 56. Rd3 {[%emt 0:00:30]} Rc2+ {[%emt 0:00:30]} 57. Kg1 {[%emt 0:00:30]} Ke4 {[%emt 0:00:30]} 58. Rg3 {[%emt 0:00:30]} Kf4 {[%emt 0:00:30]} 59. Rd3 {[%emt 0:00:30]} Ke4 {[%emt 0:00:30]} 60. Rg3 {[%emt 0:00:30]} 1/2-1/2

[Event "XIII Mediterranean Championship 2023"]
[Site "Castell-Platja d Aro"]
[Date "2023.11.06"]
[Round "4.3"]
[White "Garcia Ramos, Daniel"]
[Black "Alsina Leal, Daniel"]
[Result "1-0"]
[ECO "B90"]
[WhiteElo "2455"]
[BlackElo "2531"]
[Annotator "RC"]
[PlyCount "109"]
[EventDate "2023.10.26"]
[EventType "swiss"]
[EventCountry "ESP"]
[SourceTitle "playchess.com"]
[Source "ChessBase"]
[SourceQuality "1"]
[TimeControl "5400+30"]

1. e4 {[%emt 0:00:02]} c5 {[%emt 0:04:51]} 2. Nf3 {[%emt 0:00:14]} d6 {[%emt 0:00:13]} 3. d4 {[%emt 0:00:25]} cxd4 {[%emt 0:00:12]} 4. Nxd4 {[%emt 0:00:11]} Nf6 {[%emt 0:00:07]} 5. Nc3 {[%emt 0:00:40]} a6 {[%emt 0:00:09]} 6. f3 {[%emt 0:00:16]} e5 {[%emt 0:00:17]} 7. Nb3 {[%emt 0:00:29]} Be6 {[%emt 0:00:27]} 8. Be3 {[%emt 0:09:47]} h5 {[%emt 0:01:16]} 9. Qd2 {[%emt 0:00:46]} Nbd7 {[%emt 0:00:34]} 10. O-O-O {[%emt 0:01:10]} Rc8 {[%emt 0:00:40]} 11. Kb1 {[%emt 0:01:15]} Be7 {[%emt 0:00:41]} 12. Bg5 {[%emt 0:02:08]} b5 {[%emt 0:02:03]} 13. a3 {[%emt 0:00:14]} O-O {[%emt 0:00:44]} 14. h4 {[%emt 0:00:38]} Nb6 {[%emt 0:01:07]} 15. Na5 {[%emt 0:22:23]} Na4 {[%emt 0:27:39]} 16. Nxa4 {[%emt 0:08:16]} bxa4 {[%emt 0:00:13]} 17. Bxa6 {[%emt 0:03:41]} Rc7 {[%emt 0:25:40]} 18. Bxf6 {[%emt 0:13:34]} Bxf6 {[%emt 0:06:41]} 19. Qb4 {[%emt 0:07:17]} Qa8 {[%emt 0:04:48]} 20. Bb5 {[%emt 0:01:42]} d5 {[%emt 0:08:56]} 21. exd5 {[%emt 0:06:58]} Bxd5 {[%emt 0:00:27]} 22. Qd6 {[%emt 0:04:58]} Qxa5 {[%emt 0:02:05]} 23. Rxd5 {[%emt 0:00:08]} Qa7 {[%emt 0:04:43]} 24. Qb4 {[%emt 0:06:03]} Rb8 {[%emt 0:01:08]} 25. Rhd1 {[%emt 0:01:42]} Rcb7 {[%emt 0:01:41]} 26. Rd7 {[%emt 0:01:17]} Rxd7 {[%emt 0:00:34]} 27. Rxd7 {[%emt 0:00:01]} Qg1+ {[%emt 0:01:50]} 28. Ka2 {[%emt 0:00:03]} Qxg2 {[%emt 0:00:45]} 29. Qc4 {[%emt 0:04:23]} Qxf3 {[%emt 0:01:56]} 30. Qxf7+ {[%emt 0:01:08]} Kh7 {[%emt 0:00:27]} 31. Rd3 {[%emt 0:00:57]} Qg4 {[%emt 0:01:10]} 32. Bd7 {[%emt 0:00:44]} Qg6 {[%emt 0:00:43]} 33. Qxg6+ {[%emt 0:01:07]} Kxg6 {[%emt 0:00:01]} 34. Bxa4 {[%emt 0:00:23]} e4 {[%emt 0:01:41]} 35. Rg3+ {[%emt 0:00:14]} Kf5 {[%emt 0:00:05]} 36. b4 {[%emt 0:00:44]} Kf4 {[%emt 0:01:20]} 37. Rh3 {[%emt 0:01:32]} e3 {[%emt 0:00:31]} 38. Bc6 {[%emt 0:00:04]} Rc8 {[%emt 0:00:21]} 39. b5 {[%emt 0:00:04]} Bd4 {[%emt 0:00:43]} 40. Rf3+ {[%emt 0:01:55]} Kg4 {[%emt 0:00:01]} 41. Rf1 {[%emt 0:00:15]} Kg3 {[%emt 0:00:39]} 42. Rf3+ {[%emt 0:00:45]} Kg4 {[%emt 0:00:10]} 43. Rf1 {[%emt 0:00:50]} Kg3 {[%emt 0:01:03]} 44. Rf3+ {[%emt 0:00:05]} Kh2 {[%emt 0:00:37]} 45. Rf4 {[%emt 0:00:31]} Bb6 {[%emt 0:00:17]} 46. Rf7 {[%emt 0:00:50]} Kg3 {[%emt 0:00:36]} 47. Rxg7+ {[%emt 0:00:11]} Kxh4 {[%emt 0:00:16]} 48. Kb3 {[%emt 0:00:53]} Rd8 {[%emt 0:00:26]} 49. Bf3 {[%emt 0:00:32]} Rf8 {[%emt 0:00:48]} 50. Be2 {[%emt 0:00:29]} Rf2 {[%emt 0:00:27]} 51. Bd3 {[%emt 0:00:04]} Rd2 {[%emt 0:00:32]} 52. Rg6 {[%emt 0:00:28]} Bd8 {[%emt 0:00:37]} 53. Re6 {[%emt 0:00:36]} Bg5 {[%emt 0:00:25]} 54. b6 {[%emt 0:00:08]} Rf2 {[%emt 0:00:36]} 55. a4 {[%emt 0:00:40]} 1-0

[Event "XIII Mediterranean Championship 2023"]
[Site "Castell-Platja d Aro"]
[Date "2023.11.06"]
[Round "4.4"]
[White "Iermito, Sebastian"]
[Black "Ayats Llobera, Gerard"]
[Result "1-0"]
[ECO "A15"]
[WhiteElo "2521"]
[BlackElo "2442"]
[Annotator "RC"]
[PlyCount "95"]
[EventDate "2023.10.26"]
[EventType "swiss"]
[EventCountry "ESP"]
[SourceTitle "playchess.com"]
[Source "ChessBase"]
[SourceQuality "1"]
[TimeControl "5400+30"]

1. Nf3 {[%emt 0:00:02]} Nf6 {[%emt 0:00:30]} 2. c4 {[%emt 0:00:11]} g6 {[%emt 0:02:38]} 3. b3 {[%emt 0:00:13]} Bg7 {[%emt 0:00:17]} 4. Bb2 {[%emt 0:00:03]} O-O {[%emt 0:00:06]} 5. g3 {[%emt 0:00:11]} d6 {[%emt 0:03:54]} 6. Bg2 {[%emt 0:00:21]} e5 {[%emt 0:00:09]} 7. d3 {[%emt 0:01:18]} Re8 {[%emt 0:00:17]} 8. O-O {[%emt 0:00:28]} Nc6 {[%emt 0:01:20]} 9. Nc3 {[%emt 0:01:39]} h6 {[%emt 0:06:04]} 10. h3 {[%emt 0:04:26]} Nd4 {[%emt 0:06:10]} 11. Nd2 {[%emt 0:03:36]} c6 {[%emt 0:06:13]} 12. e3 {[%emt 0:00:14]} Nf5 {[%emt 0:01:53]} 13. Nde4 {[%emt 0:02:05]} Be6 {[%emt 0:00:58]} 14. b4 {[%emt 0:12:53]} a6 {[%emt 0:03:52]} 15. a4 {[%emt 0:01:40]} Qd7 {[%emt 0:08:31]} 16. Kh2 {[%emt 0:04:38]} Qc7 {[%emt 0:09:08]} 17. Rc1 {[%emt 0:06:31]} Qd7 {[%emt 0:11:02]} 18. a5 {[%emt 0:04:15]} Qe7 {[%emt 0:06:47]} 19. Na4 {[%emt 0:02:57]} Rad8 {[%emt 0:01:20]} 20. Re1 {[%emt 0:08:38]} Qc7 {[%emt 0:01:40]} 21. Qd2 {[%emt 0:08:36]} Qb8 {[%emt 0:03:54]} 22. Nxf6+ {[%emt 0:08:40]} Bxf6 {[%emt 0:00:07]} 23. e4 {[%emt 0:00:19]} Bg5 {[%emt 0:02:27]} 24. f4 {[%emt 0:00:05]} exf4 {[%emt 0:00:38]} 25. Qc3 {[%emt 0:00:46]} fxg3+ {[%emt 0:00:37]} 26. Kh1 {[%emt 0:00:11]} f6 {[%emt 0:00:26]} 27. exf5 {[%emt 0:00:12]} Bxf5 {[%emt 0:00:54]} 28. Rcd1 {[%emt 0:06:50]} h5 {[%emt 0:00:47]} 29. d4 {[%emt 0:02:24]} h4 {[%emt 0:00:48]} 30. d5 {[%emt 0:07:12]} cxd5 {[%emt 0:01:08]} 31. Bxd5+ {[%emt 0:00:06]} Kg7 {[%emt 0:00:24]} 32. Bg2 {[%emt 0:00:39]} Rxe1+ {[%emt 0:02:51]} 33. Rxe1 {[%emt 0:01:05]} Re8 {[%emt 0:00:05]} 34. Nb6 {[%emt 0:01:54]} Re5 {[%emt 0:00:04]} 35. Nd5 {[%emt 0:07:52]} Qc8 {[%emt 0:04:54]} 36. Ne7 {[%emt 0:02:25]} Rxe1+ 37. Qxe1 {[%emt 0:00:01]} Qxc4 {[%emt 0:06:53]} 38. Bd5 {[%emt 0:01:53]} Qc2 {[%emt 0:01:30]} 39. Nxf5+ {[%emt 0:00:20]} Qxf5 {[%emt 0:00:05]} 40. Bg2 {[%emt 0:01:12]} Kh6 {[%emt 0:04:26]} 41. Bd4 {[%emt 0:00:37]} Qc2 {[%emt 0:02:37]} 42. Bg1 {[%emt 0:00:47]} f5 {[%emt 0:02:03]} 43. Qe8 {[%emt 0:00:27]} Bf6 {[%emt 0:00:52]} 44. Qf8+ {[%emt 0:00:27]} Bg7 {[%emt 0:00:05]} 45. Qxd6 {[%emt 0:00:06]} Qc1 {[%emt 0:00:51]} 46. Qc5 {[%emt 0:00:27]} Qd1 {[%emt 0:00:31]} 47. Qe3+ {[%emt 0:00:36]} Kh7 {[%emt 0:00:10]} 48. Qg5 {[%emt 0:00:49]} 1-0

[Event "XIII Mediterranean Championship 2023"]
[Site "Castell-Platja d Aro"]
[Date "2023.11.06"]
[Round "4.5"]
[White "Gines Esteo, Pedro Antonio"]
[Black "Narciso Dublan, Marc"]
[Result "1/2-1/2"]
[ECO "E71"]
[WhiteElo "2490"]
[BlackElo "2401"]
[Annotator "RC"]
[PlyCount "96"]
[EventDate "2023.10.26"]
[EventType "swiss"]
[EventCountry "ESP"]
[SourceTitle "playchess.com"]
[Source "ChessBase"]
[SourceQuality "1"]
[TimeControl "5400+30"]

1. c4 {[%emt 0:01:00]} Nf6 {[%emt 0:00:23]} 2. Nc3 {[%emt 0:06:03]} g6 {[%emt 0:00:18]} 3. e4 {[%emt 0:00:43]} d6 {[%emt 0:00:19]} 4. d4 {[%emt 0:00:06]} Bg7 {[%emt 0:00:09]} 5. h3 {[%emt 0:04:47]} O-O {[%emt 0:00:24]} 6. Be3 {[%emt 0:00:03]} e5 {[%emt 0:03:15]} 7. d5 {[%emt 0:00:21]} Na6 {[%emt 0:00:09]} 8. g4 {[%emt 0:02:20]} Nc5 {[%emt 0:01:11]} 9. f3 {[%emt 0:00:54]} a5 {[%emt 0:07:28]} 10. Qd2 {[%emt 0:00:40]} c6 {[%emt 0:03:14]} 11. Nge2 {[%emt 0:01:00]} cxd5 {[%emt 0:03:42]} 12. cxd5 {[%emt 0:01:09]} Bd7 {[%emt 0:08:10]} 13. Nc1 {[%emt 0:21:44]} a4 {[%emt 0:02:28]} 14. Nd3 {[%emt 0:02:18]} Qa5 {[%emt 0:07:41]} 15. Nxc5 {[%emt 0:00:52]} dxc5 {[%emt 0:00:12]} 16. Nd1 {[%emt 0:00:06]} Ne8 {[%emt 0:07:55]} 17. Qxa5 {[%emt 0:14:41]} Rxa5 {[%emt 0:00:05]} 18. Rc1 {[%emt 0:05:27]} b6 {[%emt 0:01:01]} 19. Rc2 {[%emt 0:00:19]} Nd6 {[%emt 0:03:57]} 20. Rg2 {[%emt 0:08:09]} Rc8 {[%emt 0:03:38]} 21. h4 {[%emt 0:06:05]} h6 {[%emt 0:08:12]} 22. h5 {[%emt 0:06:06]} g5 {[%emt 0:00:11]} 23. Rc2 {[%emt 0:00:21]} Bf8 {[%emt 0:02:37]} 24. Rhh2 {[%emt 0:02:50]} f6 {[%emt 0:02:21]} 25. Rc1 {[%emt 0:00:25]} Nb7 {[%emt 0:07:24]} 26. Rhc2 {[%emt 0:01:33]} b5 {[%emt 0:00:37]} 27. Bd2 {[%emt 0:06:20]} Raa8 {[%emt 0:00:36]} 28. b3 {[%emt 0:01:55]} axb3 {[%emt 0:01:55]} 29. axb3 {[%emt 0:00:01]} Ra3 {[%emt 0:00:32]} 30. Rb1 {[%emt 0:01:34]} Rca8 {[%emt 0:08:38]} 31. Bc1 {[%emt 0:01:15]} Ra1 {[%emt 0:05:43]} 32. Rxa1 {[%emt 0:01:00]} Rxa1 {[%emt 0:00:03]} 33. Bb2 {[%emt 0:00:06]} Ra8 {[%emt 0:03:43]} 34. Rc1 {[%emt 0:00:20]} Be7 {[%emt 0:02:43]} 35. Kd2 {[%emt 0:03:04]} Bd8 {[%emt 0:04:38]} 36. Kc2 {[%emt 0:01:07]} Bb6 {[%emt 0:00:48]} 37. Ra1 {[%emt 0:01:32]} Rxa1 38. Bxa1 {[%emt 0:00:01]} Kf7 {[%emt 0:00:42]} 39. Bc3 {[%emt 0:00:22]} Ke7 {[%emt 0:00:51]} 40. Be1 {[%emt 0:00:29]} Kd8 {[%emt 0:00:32]} 41. Bf2 {[%emt 0:01:04]} Kc7 {[%emt 0:00:11]} 42. Nb2 {[%emt 0:00:42]} Nd6 {[%emt 0:00:52]} 43. Be2 {[%emt 0:00:30]} Be8 {[%emt 0:00:46]} 44. Bg1 {[%emt 0:00:17]} Bd7 {[%emt 0:00:15]} 45. Bf2 {[%emt 0:00:43]} Be8 {[%emt 0:00:24]} 46. Bg1 {[%emt 0:00:01]} Bd7 {[%emt 0:00:16]} 47. Bf1 {[%emt 0:00:47]} Be8 {[%emt 0:00:40]} 48. Bf2 {[%emt 0:00:05]} Bd7 {[%emt 0:00:25]} 1/2-1/2

[Event "XIII Mediterranean Championship 2023"]
[Site "Castell-Platja d Aro"]
[Date "2023.11.06"]
[Round "4.6"]
[White "Valle Luis, Leo"]
[Black "Alexakis, Dimitris"]
[Result "0-1"]
[ECO "B47"]
[WhiteElo "2216"]
[BlackElo "2458"]
[Annotator "RC"]
[PlyCount "78"]
[EventDate "2023.10.26"]
[EventType "swiss"]
[EventCountry "ESP"]
[SourceTitle "playchess.com"]
[Source "ChessBase"]
[SourceQuality "1"]
[TimeControl "5400+30"]

1. e4 {[%emt 0:00:03]} c5 {[%emt 0:00:21]} 2. Nf3 {[%emt 0:00:14]} e6 {[%emt 0:00:23]} 3. d4 {[%emt 0:00:33]} cxd4 {[%emt 0:00:11]} 4. Nxd4 {[%emt 0:00:12]} Nc6 {[%emt 0:00:04]} 5. Nc3 {[%emt 0:00:13]} Qc7 {[%emt 0:00:05]} 6. g4 {[%emt 0:00:07]} a6 {[%emt 0:00:42]} 7. Be3 {[%emt 0:00:08]} h6 {[%emt 0:05:18]} 8. Qd2 {[%emt 0:01:50]} Nf6 {[%emt 0:04:00]} 9. f3 {[%emt 0:00:22]} Na5 {[%emt 0:14:47]} 10. O-O-O {[%emt 0:20:28]} b5 {[%emt 0:08:19]} 11. Re1 {[%emt 0:11:42]} Nc4 {[%emt 0:13:43]} 12. Bxc4 {[%emt 0:00:09]} Qxc4 {[%emt 0:00:13]} 13. Kb1 {[%emt 0:05:26]} d6 {[%emt 0:12:19]} 14. h4 {[%emt 0:07:54]} Nd7 {[%emt 0:01:12]} 15. g5 {[%emt 0:07:30]} Ne5 {[%emt 0:05:06]} 16. Qg2 {[%emt 0:09:14]} h5 {[%emt 0:01:48]} 17. Nb3 {[%emt 0:02:16]} a5 {[%emt 0:14:18]} 18. Rh3 {[%emt 0:06:07]} Be7 {[%emt 0:05:11]} 19. f4 {[%emt 0:09:37]} Ng4 {[%emt 0:00:29]} 20. Bg1 {[%emt 0:02:43]} O-O {[%emt 0:03:54]} 21. Rd3 {[%emt 0:00:46]} Bb7 {[%emt 0:02:49]} 22. Rd4 {[%emt 0:07:47]} Qc6 {[%emt 0:01:38]} 23. Qe2 {[%emt 0:03:27]} b4 {[%emt 0:02:15]} 24. Nd5 {[%emt 0:00:58]} exd5 {[%emt 0:01:17]} 25. exd5 {[%emt 0:00:12]} Qa4 {[%emt 0:00:26]} 26. f5 {[%emt 0:02:00]} Bd8 {[%emt 0:00:53]} 27. Rxg4 {[%emt 0:01:25]} hxg4 {[%emt 0:00:13]} 28. g6 {[%emt 0:00:19]} Qd7 {[%emt 0:00:36]} 29. Qxg4 {[%emt 0:00:34]} fxg6 {[%emt 0:00:24]} 30. Nd4 {[%emt 0:00:13]} Bxd5 {[%emt 0:01:15]} 31. Ne6 {[%emt 0:00:44]} Rxf5 {[%emt 0:00:29]} 32. Nxg7 {[%emt 0:00:44]} Rf1 {[%emt 0:00:52]} 33. Qd1 {[%emt 0:00:24]} Rxe1 {[%emt 0:00:05]} 34. Qxe1 {[%emt 0:00:02]} Qxg7 {[%emt 0:00:19]} 35. Qe8+ {[%emt 0:00:11]} Kh7 {[%emt 0:02:06]} 36. h5 {[%emt 0:00:18]} Bf6 {[%emt 0:00:00]} 37. Qe2 {[%emt 0:00:21]} Bf7 {[%emt 0:00:00]} 38. b3 {[%emt 0:00:45]} gxh5 {[%emt 0:00:00]} 39. Qe4+ {[%emt 0:00:10]} Qg6 {[%emt 0:00:00]} 0-1